bitfinex/quotes_SOLUSD_20260208
["timestamp","ask_amount","ask_price","bid_price","bid_amount"]
[1770517800227,3.27608526,87.829,87.791,3.23873727]
[1770517801428,3.27608526,87.829,87.793,3.23873727]
[1770517801829,3.27608526,87.829,87.801,3.23873727]
[1770517802030,3.27608526,87.819,87.784,3.23873727]
[1770517802233,3.27608526,87.809,87.775,3.23873727]
[1770517802621,3.27608526,87.789,87.761,3.23873727]
[1770517803020,3.27608526,87.818,87.762,39.88058613]
[1770517803217,3.27608526,87.818,87.781,3.23873727]
[1770517803413,3.99437204,87.81,87.781,3.23873727]
[1770517803614,3.27608526,87.809,87.783,3.23873727]
[1770517803815,3.27608526,87.809,87.782,11.3918571]
[1770517804217,4.19437204,87.83,87.784,3.23873727]
[1770517804939,3.99437204,87.82,87.784,3.23873727]
[1770517806241,3.46352017,87.819,87.786,3.23906918]
[1770517806536,3.46352017,87.828,87.786,3.23906918]
[1770517807435,3.46352017,87.828,87.791,3.23906918]
[1770517807632,3.46352017,87.828,87.785,39.87013726]
[1770517807633,3.46352017,87.828,87.801,3.23906918]
[1770517808213,3.46352017,87.828,87.803,3.23906918]
[1770517809835,0.2,87.83,87.803,3.23906918]
[1770517811328,0.2,87.83,87.804,11.38900277]
[1770517811528,0.2,87.83,87.805,3.23906918]
[1770517811937,0.2,87.83,87.811,3.23906918]
[1770517813228,3.18840388,87.839,87.812,3.17175074]
[1770517813942,3.18840388,87.849,87.821,3.17175074]
[1770517814542,3.18840388,87.848,87.814,3.17175074]
[1770517815148,3.18840388,87.848,87.821,3.17175074]
[1770517815367,0.2,87.85,87.821,3.17175074]
[1770517816036,7.24719656,87.857,87.83,3.99437204]
[1770517816353,3.18840388,87.877,87.851,3.17175074]
[1770517816525,3.18840388,87.877,87.845,3.17175074]
[1770517817453,3.18840388,87.889,87.85,3.99437204]
[1770517817630,3.18840388,87.889,87.861,3.17175074]
[1770517818760,3.38840388,87.91,87.881,3.17175074]
[1770517819542,0.2,87.91,87.883,3.17175074]
[1770517819949,3.18840388,87.909,87.883,3.17175074]
[1770517820834,0.2,87.91,87.891,3.17175074]
[1770517821244,3.18840388,87.921,87.891,3.17175074]
[1770517821736,3.18840388,87.927,87.893,3.17175074]
[1770517822059,11.37017777,87.95,87.901,3.17175074]
[1770517822060,3.18840388,87.949,87.901,3.17175074]
[1770517822357,3.18840388,87.939,87.901,3.17175074]
[1770517823759,3.18840388,87.939,87.892,39.82159923]
[1770517823760,3.18840388,87.939,87.903,3.17175074]
[1770517825852,28.4226253,87.959,87.88,3.99437204]
[1770517825853,3.99437204,87.93,87.904,11.37604659]
[1770517826063,3.18840388,87.929,87.898,3.17175074]
[1770517826360,3.18840388,87.929,87.902,11.37628957]
[1770517826553,3.18840388,87.946,87.905,3.17175074]
[1770517826948,3.18840388,87.939,87.905,3.17175074]
[1770517827148,3.18840388,87.929,87.905,3.17175074]
[1770517828369,3.99437204,87.95,87.907,3.17175074]
[1770517828669,3.99437204,87.96,87.911,3.17175074]
[1770517828857,3.18840388,87.959,87.911,3.17175074]
[1770517829058,3.18840388,87.959,87.921,3.17175074]
[1770517829665,14.55733713,87.959,87.921,3.17175074]
[1770517829876,3.18840388,87.958,87.921,3.17175074]
[1770517830452,3.99437204,87.95,87.921,3.17175074]
[1770517830667,7.18277592,87.95,87.921,3.17175074]
[1770517830859,3.18840388,87.95,87.922,3.17175074]
[1770517831755,3.18840388,87.939,87.908,3.17175074]
[1770517832152,3.18840388,87.929,87.899,3.17175074]
[1770517832378,3.18840388,87.919,87.889,3.17175074]
[1770517833268,3.18840388,87.917,87.889,3.17175074]
[1770517833575,3.18840388,87.924,87.89,3.17175074]
[1770517833758,3.18840388,87.934,87.891,3.17175074]
[1770517834158,11.3717647,87.938,87.891,3.17175074]
[1770517834159,3.18840388,87.929,87.891,3.17175074]
[1770517834683,3.18840388,87.919,87.893,3.17175074]
[1770517835776,3.98196368,87.93,87.893,3.17175074]
[1770517836082,3.20147443,87.932,87.893,3.17175074]
[1770517837081,3.20147443,87.932,87.895,3.32083513]
[1770517839672,3.20147443,87.94,87.901,3.32083513]
[1770517839886,3.20147443,87.949,87.911,3.32083513]
[1770517840885,3.20147443,87.939,87.911,3.32083513]
[1770517841487,3.20147443,87.929,87.897,3.32083513]
[1770517841667,3.20147443,87.929,87.899,3.32083513]
[1770517843302,3.98196368,87.96,87.899,3.32083513]
[1770517843303,3.20147443,87.938,87.899,3.32083513]
[1770517843595,3.20147443,87.938,87.901,3.32083513]
[1770517843797,3.20147443,87.938,87.903,3.32083513]
[1770517844902,3.20147443,87.938,87.905,3.32083513]
[1770517847897,3.20147443,87.938,87.907,3.32083513]
[1770517849482,3.20147443,87.938,87.909,3.32083513]
[1770517850698,3.20147443,87.929,87.909,3.32083513]
[1770517856203,3.20147443,87.929,87.884,3.32083513]
[1770517856405,3.20147443,87.919,87.897,14.69778077]
[1770517856608,3.20147443,87.919,87.898,3.32083513]
[1770517856907,3.20147443,87.919,87.901,11.37635703]
[1770517857400,3.20147443,87.919,87.901,14.69719216]
[1770517858603,3.20147443,87.931,87.902,3.32083513]
[1770517858805,3.20147443,87.929,87.902,3.32083513]
[1770517860898,3.20147443,87.929,87.904,3.32083513]
[1770517865305,3.20147443,87.929,87.906,3.32083513]
[1770517869310,3.40160199,87.927,87.9,3.35674811]
[1770517874614,3.45988208,87.919,87.9,3.35674811]
[1770517881117,3.45988208,87.929,87.902,3.34384722]
[1770517882933,3.45988208,87.929,87.904,3.34384722]
[1770517887299,3.45988208,87.928,87.904,3.34384722]
[1770517888904,3.98196368,87.92,87.897,3.34384722]
[1770517889116,3.45988208,87.919,87.897,3.34384722]
[1770517891101,3.45988208,87.931,87.899,3.34384722]
[1770517891301,3.45988208,87.929,87.899,3.34384722]
[1770517894621,3.45988208,87.929,87.901,3.34384722]
[1770517895322,3.45988208,87.927,87.901,3.34384722]
[1770517897825,3.23055015,87.925,87.901,3.34384722]
[1770517903033,11.20909069,87.96,87.902,3.29156807]
[1770517903034,3.23055015,87.935,87.902,3.29156807]
[1770517903229,11.36945028,87.955,87.911,3.29156807]
[1770517903434,3.23055015,87.954,87.911,3.29156807]
[1770517904216,3.23055015,87.952,87.913,3.29156807]
[1770517905434,3.23055015,87.95,87.913,3.29156807]
[1770517905928,3.23055015,87.949,87.913,3.29156807]
[1770517906317,3.23055015,87.939,87.913,3.29156807]
[1770517906829,3.23055015,87.939,87.915,3.29156807]
[1770517907011,3.98215484,87.94,87.915,3.29156807]
[1770517908039,11.20909069,87.96,87.891,3.29156807]
[1770517908040,3.23055015,87.929,87.891,3.29156807]
[1770517908212,3.23055015,87.919,87.892,3.29156807]
[1770517910636,3.23055015,87.919,87.893,3.29156807]
[1770517912135,3.23055015,87.917,87.893,3.29156807]
[1770517913033,3.23055015,87.909,87.893,3.29156807]
[1770517913439,3.23055015,87.909,87.878,3.29156807]
[1770517913642,3.23055015,87.899,87.878,3.29156807]
[1770517914820,11.37682313,87.898,87.878,3.29156807]
[1770517920329,3.23055015,87.889,87.868,3.29156807]
[1770517920943,3.23055015,87.889,87.861,3.29156807]
[1770517921250,3.23055015,87.879,87.852,3.29156807]
[1770517921745,3.23055015,87.869,87.844,3.29156807]
[1770517922135,3.23055015,87.859,87.834,3.29156807]
[1770517922644,3.98215484,87.88,87.829,3.29156807]
[1770517922645,3.23055015,87.849,87.829,3.29156807]
[1770517923424,3.23055015,87.857,87.829,3.29156807]
[1770517924145,3.23055015,87.862,87.835,3.29156807]
[1770517925223,3.23055015,87.859,87.835,3.29156807]
[1770517925419,3.23055015,87.864,87.835,3.29156807]
[1770517925637,3.36323653,87.893,87.851,3.27266756]
[1770517926140,3.36323653,87.889,87.851,3.27266756]
[1770517927652,3.36323653,87.889,87.853,3.27266756]
[1770517928033,3.36323653,87.887,87.853,3.27266756]
[1770517929860,3.36323653,87.887,87.855,3.27266756]
[1770517931558,3.36323653,87.887,87.857,3.27266756]
[1770517932052,56.86936623,87.921,87.828,3.27266756]
[1770517932053,3.36323653,87.869,87.828,3.27266756]
[1770517932249,3.36323653,87.869,87.836,11.38485067]
[1770517932440,3.35838738,87.859,87.837,3.19225678]
[1770517933328,39.82431786,87.886,87.837,3.19225678]
[1770517933329,3.35838738,87.865,87.837,3.19225678]
[1770517933747,3.35838738,87.865,87.842,3.26031932]
[1770517935854,3.98215484,87.86,87.842,3.26031932]
[1770517936150,3.29325572,87.859,87.836,3.26031932]
[1770517942975,11.38139824,87.863,87.81,4.08215484]
[1770517942976,3.29325572,87.849,87.812,3.26031932]
[1770517943174,3.29325572,87.839,87.812,3.26031932]
[1770517945358,3.29325572,87.837,87.812,3.26031932]
[1770517946772,3.29325572,87.837,87.814,3.26031932]
[1770517949968,3.29325572,87.837,87.769,3.26031932]
[1770517949969,3.29325572,87.819,87.769,3.26031932]
[1770517950168,39.84698756,87.836,87.77,3.26031932]
[1770517950169,3.29325572,87.799,87.77,3.26031932]
[1770517951252,3.98215484,87.79,87.772,3.26031932]
[1770517951560,3.29325572,87.797,87.772,3.26031932]
[1770517952770,3.29325572,87.797,87.773,11.39302518]
[1770517952976,3.29325572,87.797,87.774,3.26031932]
[1770517955284,3.29325572,87.789,87.763,3.26031932]
[1770517955586,3.98215484,87.78,87.763,3.26031932]
[1770517956074,3.98215484,87.78,87.743,28.49201315]
[1770517956370,26.51809066,87.787,87.74,4.08215484]
[1770517956577,18.41428443,87.779,87.74,4.08215484]
[1770517957562,18.41428443,87.779,87.741,11.39718033]
[1770517958055,18.41428443,87.779,87.742,3.16516449]
[1770517958476,18.41428443,87.779,87.744,3.16516449]
[1770517958685,18.41428443,87.779,87.743,11.39692055]
[1770517958686,3.12328736,87.778,87.743,39.88922193]
[1770517958973,18.41428443,87.779,87.74,0.1]
[1770517958974,3.12328736,87.775,87.74,3.99484289]
[1770517959270,3.12328736,87.775,87.73,3.99484289]
[1770517959470,18.41428443,87.779,87.74,3.99484289]
[1770517959654,7.36990197,87.779,87.75,3.99484289]
[1770517959854,3.12328736,87.798,87.75,3.99484289]
[1770517960055,3.12328736,87.798,87.76,3.99484289]
[1770517960261,3.12328736,87.807,87.76,3.99484289]
[1770517960457,3.12328736,87.807,87.761,39.88104054]
[1770517960662,3.12328736,87.807,87.762,1.21335078]
[1770517961262,3.99484289,87.8,87.762,1.21335078]
[1770517961470,7.11813025,87.8,87.762,1.21335078]
[1770517962283,3.12328736,87.8,87.762,1.21335078]
[1770517962483,7.11813025,87.8,87.763,11.39432334]
[1770517962784,3.12328736,87.799,87.764,1.21410475]
[1770517963982,7.11813025,87.79,87.764,1.21410475]
[1770517964383,3.12328736,87.789,87.764,1.21410475]
[1770517964884,3.12328736,87.789,87.766,1.21637507]
[1770517967383,3.12328736,87.789,87.768,1.2219446]
[1770517967986,3.12328736,87.789,87.767,11.39380404]
[1770517968197,3.12328736,87.789,87.76,11.39470311]
[1770517969391,3.12328736,87.789,87.76,1.22555182]
[1770517969895,3.12328736,87.789,87.741,11.39718033]
[1770517969896,3.12328736,87.779,87.742,1.22555182]
[1770517970098,3.12328736,87.769,87.742,1.22555182]
[1770517970467,3.12328736,87.769,87.741,11.39718033]
[1770517971280,3.12328736,87.759,87.736,1.22732441]
[1770517971485,3.12328736,87.759,87.73,12.62764025]
[1770517971785,3.12328736,87.749,87.73,11.3985636]
[1770517972165,3.12328736,87.749,87.725,1.22907665]
[1770517972367,3.12328736,87.749,87.724,11.39933457]
[1770517973093,3.12328736,87.749,87.724,10.80346304]
[1770517973269,3.12328736,87.749,87.725,1.23252097]
[1770517973581,3.12328736,87.749,87.726,11.3991291]
[1770517973786,3.12328736,87.739,87.696,1.23252097]
[1770517974089,3.12328736,87.719,87.698,1.33252097]
[1770517975468,3.12328736,87.719,87.699,11.40263857]
[1770517976564,3.12328736,87.717,87.683,1.33754051]
[1770517977608,3.12328736,87.717,87.684,11.4045892]
[1770517977817,3.12328736,87.717,87.685,1.3391754]
[1770517978103,3.12328736,87.734,87.691,1.3391754]
[1770517978306,3.12328736,87.75,87.711,1.34079151]
[1770517978891,3.12328736,87.749,87.711,1.34079151]
[1770517979706,3.12328736,87.762,87.721,1.34236363]
[1770517979908,3.12328736,87.762,87.731,1.34236363]
[1770517980106,3.12328736,87.779,87.731,1.34236363]
[1770517980310,3.12328736,87.789,87.751,1.34391769]
[1770517981593,3.12328736,87.789,87.752,12.74120556]
[1770517982198,3.12328736,87.789,87.753,1.3454539]
[1770517982896,3.12328736,87.799,87.761,1.34697246]
[1770517983507,3.12328736,87.799,87.763,1.34847358]
[1770517985615,3.12328736,87.799,87.765,1.35287429]
[1770517986405,3.10861046,87.809,87.765,1.35287429]
[1770517988032,3.10861046,87.809,87.766,11.39393386]
[1770517988311,3.10861046,87.809,87.767,1.35572449]
[1770517989413,3.10861046,87.809,87.769,1.3585096]
[1770517990616,3.10861046,87.809,87.77,11.3934146]
[1770517990818,3.10861046,87.809,87.771,1.3598782]
[1770517991015,3.10861046,87.779,87.735,1.3598782]
[1770517991316,3.10861046,87.786,87.763,11.39427368]
[1770517993228,3.45677098,87.779,87.756,11.39510374]
[1770517993606,3.45677098,87.779,87.742,1.36519723]
[1770517993812,3.45677098,87.769,87.74,11.3972649]
[1770517994306,3.45677098,87.769,87.733,1.36519723]
[1770517994511,3.45677098,87.759,87.733,1.36519723]
[1770517995123,3.45677098,87.759,87.738,11.39749998]
[1770517996324,3.99484289,87.75,87.731,11.39845464]
[1770517996525,3.45677098,87.753,87.734,11.39808968]
[1770518000225,3.45677098,87.769,87.731,1.3727288]
[1770518001123,3.45677098,87.769,87.711,96.9091676]
[1770518001124,3.45677098,87.769,87.741,1.37393408]
[1770518001518,3.45677098,87.769,87.733,1.37512553]
[1770518001904,3.45677098,87.759,87.725,1.37512553]
[1770518002308,3.45677098,87.759,87.729,11.39863408]
[1770518002517,3.45677098,87.759,87.729,12.77493736]
[1770518002723,3.45677098,87.759,87.73,1.37630328]
[1770518003510,3.45677098,87.759,87.731,11.39847944]
[1770518003711,3.45677098,87.759,87.731,12.77594695]
[1770518003909,3.45677098,87.759,87.732,1.37746751]
[1770518004518,3.45677098,87.767,87.732,1.37746751]
[1770518005720,3.45677098,87.765,87.726,1.379756]
[1770518007039,3.45677098,87.759,87.728,1.38088057]
[1770518008030,3.45677098,87.759,87.729,11.39873929]
[1770518008222,3.45677098,87.759,87.73,1.38199223]
[1770518008419,3.45677098,87.759,87.729,11.39873929]
[1770518009041,3.99484289,87.76,87.724,1.38309111]
[1770518009042,3.45677098,87.757,87.724,1.38309111]
[1770518009416,3.45677098,87.757,87.723,11.39940899]
[1770518009731,3.45677098,87.749,87.723,11.39940899]
[1770518011823,3.45677098,87.749,87.718,1.38631262]
[1770518012834,3.45677098,87.749,87.72,1.38736188]
[1770518014248,3.45677098,87.739,87.715,11.40050321]
[1770518014459,3.45677098,87.746,87.72,1.38942439]
[1770518014655,3.45677098,87.746,87.721,1.38942439]
[1770518014938,3.45677098,87.746,87.723,1.38942439]
[1770518015147,3.45677098,87.746,87.716,28.50104645]
[1770518015148,3.45677098,87.746,87.716,11.40039571]
[1770518018933,3.45677098,87.746,87.717,1.3943769]
[1770518019251,3.45677098,87.746,87.721,1.3943769]
[1770518020149,3.45677098,87.746,87.716,12.79572925]
[1770518020847,3.1489668,87.729,87.689,11.40391887]
[1770518021145,3.1489668,87.729,87.685,1.39627919]
[1770518021348,3.1489668,87.729,87.693,12.79957239]
[1770518021540,3.99671042,87.72,87.693,12.79957239]
[1770518021845,3.1489668,87.719,87.694,1.39721397]
[1770518022629,3.1489668,87.719,87.695,11.40315867]
[1770518024738,3.1489668,87.719,87.695,1.3999544]
[1770518026540,3.1489668,87.719,87.695,12.80306822]
[1770518026752,3.1489668,87.719,87.696,1.40172929]
[1770518027745,3.86996681,87.719,87.696,1.40172929]
[1770518028155,3.1489668,87.717,87.683,11.40460068]
[1770518028333,3.1489668,87.715,87.683,11.40460068]
[1770518028650,3.86996681,87.715,87.684,1.40346365]
[1770518030052,3.86996681,87.715,87.685,11.40445914]
[1770518030656,3.86996681,87.715,87.685,12.80961753]
[1770518031039,3.86996681,87.715,87.685,11.40445914]
[1770518031244,3.1489668,87.709,87.67,1.50515839]
[1770518031544,3.1489668,87.709,87.672,1.40599119]
[1770518031741,3.1489668,87.699,87.67,0.1]
[1770518034040,3.1489668,87.689,87.67,0.1]
[1770518035352,3.1489668,87.679,87.67,0.1]
[1770518036254,3.1489668,87.679,87.65,0.1]
[1770518036457,3.1489668,87.659,87.633,11.41114519]
[1770518036644,3.1489668,87.659,87.631,11.41138942]
[1770518037367,3.1489668,87.657,87.63,11.51161337]
[1770518038561,7.2681262,87.658,87.63,11.51161337]
[1770518038562,3.1489668,87.655,87.63,0.1]
[1770518040149,3.1489668,87.655,87.63,4.09671042]
[1770518040348,3.1489668,87.655,87.63,0.1]
[1770518041445,3.48356282,87.695,87.63,0.1]
[1770518041770,28.49485424,87.736,87.63,0.1]
[1770518041771,3.48356282,87.693,87.65,3.99671042]
[1770518042271,3.48356282,87.692,87.65,3.99671042]
[1770518042463,3.48356282,87.691,87.65,3.99671042]
[1770518042664,3.48356282,87.69,87.65,3.99671042]
[1770518042864,3.48356282,87.69,87.651,11.40888295]
[1770518042865,3.48356282,87.689,87.651,11.40888295]
[1770518043164,3.48356282,87.688,87.651,11.40888295]
[1770518043367,3.48356282,87.687,87.651,11.40888295]
[1770518043559,3.48356282,87.686,87.651,11.40888295]
[1770518043870,3.48356282,87.685,87.651,11.40888295]
[1770518044571,3.48356282,87.685,87.651,39.93109034]
[1770518045647,3.99671042,87.68,87.651,11.40888295]
[1770518045852,7.25035175,87.686,87.63,0.1]
[1770518045853,3.48356282,87.669,87.643,11.40991073]
[1770518046953,3.48356282,87.669,87.633,11.41115597]
[1770518047571,3.48356282,87.667,87.63,0.1]
[1770518047774,3.48356282,87.666,87.63,0.1]
[1770518047957,3.48356282,87.665,87.63,0.1]
[1770518048152,3.48356282,87.664,87.63,0.1]
[1770518048357,3.48356282,87.659,87.63,0.1]
[1770518049773,3.48356282,87.658,87.63,0.1]
[1770518050072,3.48356282,87.657,87.63,0.1]
[1770518050274,3.48356282,87.656,87.63,0.1]
[1770518053376,7.25454481,87.656,87.63,0.1]
[1770518053586,3.48356282,87.655,87.63,0.1]
[1770518053778,3.48356282,87.655,87.63,4.09671042]
[1770518055088,7.25320389,87.669,87.631,3.17291489]
[1770518055980,7.25320389,87.669,87.633,3.17291489]
[1770518056865,7.25561926,87.679,87.651,3.17291489]
[1770518057079,3.2759964,87.678,87.651,3.17291489]
[1770518057869,3.2759964,87.678,87.652,11.40875279]
[1770518058890,7.25561926,87.679,87.653,3.17291489]
[1770518059689,7.25561926,87.679,87.661,11.40758147]
[1770518060181,3.2759964,87.678,87.661,11.40758147]
[1770518060989,5.7328958,87.679,87.663,3.17291489]
[1770518061194,7.25045202,87.709,87.67,3.99671042]
[1770518061379,7.25045202,87.709,87.67,7.16962531]
[1770518061874,3.99671042,87.73,87.691,3.17291489]
[1770518062085,7.24893734,87.728,87.691,3.17291489]
[1770518062398,3.99671042,87.7,87.671,3.17291489]
[1770518062569,3.99671042,87.69,87.667,11.40678785]
[1770518063189,3.2759964,87.689,87.667,11.40678785]
[1770518063585,3.99671042,87.72,87.651,11.40883178]
[1770518063586,3.2759964,87.679,87.651,11.40883178]
[1770518063885,3.2759964,87.669,87.651,11.40883178]
[1770518064087,3.2759964,87.669,87.646,11.4095338]
[1770518064290,3.99671042,87.68,87.636,11.41073857]
[1770518064291,3.2759964,87.659,87.636,11.41073857]
[1770518064796,3.2759964,87.659,87.631,3.17291489]
[1770518065091,3.2759964,87.659,87.635,11.41086593]
[1770518065470,3.2759964,87.659,87.63,0.1]
[1770518065673,11.40667062,87.668,87.63,0.1]
[1770518065674,3.2759964,87.639,87.63,0.1]
[1770518067695,7.23960464,87.648,87.631,3.17291489]
[1770518067904,7.23960464,87.648,87.615,11.41357073]
[1770518068078,7.23960464,87.648,87.568,63.37368401]
[1770518068079,3.99671042,87.62,87.597,3.17291489]
[1770518068400,3.99671042,87.63,87.597,3.17291489]
[1770518068974,7.24550983,87.636,87.597,3.17291489]
[1770518069197,3.99671042,87.66,87.612,3.17291489]
[1770518069500,3.2759964,87.658,87.612,3.17291489]
[1770518069668,3.2759964,87.657,87.612,3.17291489]
[1770518069872,3.2759964,87.656,87.612,3.17291489]
[1770518070097,3.2759964,87.655,87.614,3.17291489]
[1770518070278,3.2759964,87.654,87.621,3.17291489]
[1770518071580,7.24482231,87.655,87.613,11.41383128]
[1770518071581,3.2759964,87.639,87.613,11.41383128]
[1770518071775,3.2759964,87.639,87.614,3.17291489]
[1770518072179,3.2759964,87.639,87.615,11.41357073]
[1770518072988,3.2759964,87.646,87.616,3.17291489]
[1770518074394,3.2759964,87.646,87.609,3.17291489]
[1770518074799,3.2759964,87.645,87.609,3.17291489]
[1770518075180,3.2759964,87.644,87.609,3.17291489]
[1770518075498,3.2759964,87.629,87.602,3.17291489]
[1770518075689,3.1659057,87.628,87.602,3.17291489]
[1770518076578,3.1659057,87.628,87.603,11.41513418]
[1770518077096,3.1659057,87.628,87.597,11.4158824]
[1770518077398,3.1659057,87.619,87.597,11.4158824]
[1770518077600,3.1659057,87.617,87.597,11.4158824]
[1770518078681,3.1659057,87.617,87.592,14.73868665]
[1770518078881,7.24928732,87.618,87.593,3.32211893]
[1770518080195,3.1659057,87.625,87.592,39.95798702]
[1770518080196,10.42076722,87.639,87.601,3.32211893]
[1770518080392,3.1659057,87.637,87.601,3.32211893]
[1770518080771,3.1659057,87.637,87.603,3.32211893]
[1770518081804,3.1659057,87.629,87.602,11.41526449]
[1770518082022,3.1659057,87.627,87.596,11.41595575]
[1770518082204,3.1659057,87.619,87.59,11.41675892]
[1770518082688,3.1659057,87.617,87.583,11.41761428]
[1770518083001,3.1659057,87.609,87.583,11.41761428]
[1770518083203,3.1659057,87.607,87.583,11.41761428]
[1770518083410,4.00865542,87.61,87.575,11.41868169]
[1770518083411,3.1659057,87.605,87.575,11.41868169]
[1770518083595,3.1659057,87.599,87.575,11.41868169]
[1770518084010,7.25351539,87.606,87.582,3.32211893]
[1770518085111,7.26359785,87.629,87.591,3.35118264]
[1770518085415,7.26359785,87.629,87.601,3.35118264]
[1770518087109,0.29987228,87.628,87.6,11.41545514]
[1770518087295,0.30105598,87.627,87.6,11.41545514]
[1770518087496,0.30105598,87.626,87.6,11.41545514]
[1770518087713,0.30105598,87.625,87.6,11.41545514]
[1770518087916,0.30105598,87.609,87.576,11.41864435]
[1770518088214,10.73820181,87.61,87.574,3.35118264]
[1770518088215,0.30105598,87.607,87.58,11.41805048]
[1770518088397,7.5515643,87.606,87.58,11.41805048]
[1770518088709,7.25002374,87.605,87.58,11.41805048]
[1770518089095,0.30211395,87.604,87.574,3.35118264]
[1770518089291,7.55773179,87.604,87.575,3.35118264]
[1770518089495,7.26501605,87.603,87.575,3.35118264]
[1770518089813,7.26501605,87.603,87.579,3.35118264]
[1770518090716,7.26501605,87.603,87.579,14.76935243]
[1770518091916,7.26501605,87.603,87.58,3.35118264]
[1770518098117,11.73036276,87.602,87.572,3.35118264]
[1770518098332,0.31509827,87.599,87.565,3.35118264]
[1770518098501,0.31651449,87.598,87.565,3.35118264]
[1770518100308,0.31791444,87.597,87.565,3.35118264]
[1770518100631,0.31791444,87.597,87.566,14.77114015]
[1770518100803,0.31791444,87.597,87.567,3.35118264]
[1770518101232,10.73820181,87.59,87.557,3.35118264]
[1770518101408,0.32066629,87.569,87.539,11.4234304]
[1770518101601,10.73820181,87.56,87.539,11.4234304]
[1770518101801,11.0588681,87.56,87.533,3.35118264]
[1770518102024,0.32066629,87.549,87.51,3.45118264]
[1770518102333,10.73820181,87.55,87.516,3.35118264]
[1770518102334,0.32066629,87.54,87.516,3.35118264]
[1770518102629,0.32066629,87.54,87.51,0.1]
[1770518102949,0.32201855,87.519,87.493,11.42948055]
[1770518103226,11.42347982,87.539,87.47,10.73820181]
[1770518103227,0.32201855,87.509,87.475,11.43182081]
[1770518103408,45.34304125,87.539,87.458,3.35118264]
[1770518103409,0.32335528,87.499,87.458,3.35118264]
[1770518103612,0.32335528,87.499,87.42,10.73820181]
[1770518103613,0.32335528,87.479,87.447,3.35118264]
[1770518103837,0.32335528,87.489,87.451,3.35118264]
[1770518104123,0.32335528,87.489,87.459,11.4339147]
[1770518104329,0.32335528,87.497,87.461,3.35118264]
[1770518104500,0.32467666,87.509,87.461,3.35118264]
[1770518104702,0.32467666,87.508,87.462,3.35118264]
[1770518105510,10.73820181,87.48,87.453,3.35118264]
[1770518105717,11.06547587,87.48,87.453,3.35118264]
[1770518106035,0.32727406,87.505,87.461,3.35118264]
[1770518106218,10.73820181,87.5,87.463,3.35118264]
[1770518106832,11.06675224,87.51,87.463,3.35118264]
[1770518107004,0.32855043,87.509,87.463,3.35118264]
[1770518108003,0.3487,117.68,87.463,3.35118264]
[1770518108226,0.3487,117.68,87.462,40.01737897]
[1770518108227,0.32981213,87.556,87.513,3.35118264]
[1770518108420,0.33105935,87.549,87.513,3.35118264]
[1770518108618,10.73820181,87.56,87.521,3.35118264]
[1770518108928,28.54435589,87.583,87.521,3.35118264]
[1770518108929,10.73820181,87.54,87.521,3.35118264]
[1770518109533,10.73820181,87.54,87.512,14.77818693]
[1770518109735,10.73820181,87.55,87.513,3.35118264]
[1770518110209,10.73820181,87.55,87.514,11.42674314]
[1770518110409,10.73820181,87.55,87.515,3.35118264]
[1770518112226,11.42063436,87.561,87.515,3.35118264]
[1770518112227,10.73820181,87.56,87.515,3.35118264]
[1770518112438,10.73820181,87.56,87.517,3.35118264]
[1770518112935,10.73820181,87.55,87.517,3.35118264]
[1770518113119,10.73820181,87.54,87.517,3.35118264]
[1770518113323,10.73820181,87.54,87.484,5.13032502]
[1770518113324,0.3382475,87.529,87.492,14.78077849]
[1770518113525,10.73820181,87.52,87.497,11.42884716]
[1770518113726,39.97304673,87.559,87.475,28.57934102]
[1770518113727,11.07644931,87.51,87.481,3.35118264]
[1770518114308,10.73820181,87.51,87.482,11.43092293]
[1770518114508,10.73820181,87.51,87.482,14.78210557]
[1770518114729,10.73820181,87.51,87.483,3.35118264]
[1770518115915,0.34053494,87.517,87.483,3.35118264]
[1770518116434,0.34053494,87.517,87.485,3.35118264]
[1770518116939,10.73820181,87.51,87.478,3.35118264]
[1770518117238,0.34165899,87.515,87.478,3.35118264]
[1770518117735,10.73820181,87.51,87.478,3.35118264]
[1770518118120,11.42648201,87.516,87.451,3.35118264]
[1770518118121,0.34277013,87.499,87.451,3.35118264]
[1770518118318,0.34386851,87.489,87.459,3.35118264]
[1770518118509,0.34386851,87.469,87.436,11.43693346]
[1770518119018,0.34386851,87.469,87.436,14.7881161]
[1770518119222,0.34386851,87.469,87.437,3.35118264]
[1770518120434,5.36086188,87.506,87.392,57.21300945]
[1770518120435,0.34602757,87.459,87.422,11.43865272]
[1770518120633,0.34602757,87.449,87.417,3.61921224]
[1770518120811,0.34602757,87.449,87.42,11.43901322]
[1770518121335,10.73820181,87.44,87.42,11.43901322]
[1770518121535,10.73820181,87.44,87.417,3.61921224]
[1770518121913,10.73820181,87.44,87.417,0.2680296]
[1770518122318,10.73820181,87.44,87.417,3.61921224]
[1770518122535,0.34602757,87.449,87.417,3.61921224]
[1770518122724,10.73820181,87.44,87.417,3.61921224]
[1770518123239,10.73820181,87.43,87.417,3.61921224]
[1770518123427,10.73820181,87.44,87.417,0.2680296]
[1770518123941,10.73820181,87.43,87.417,0.2680296]
[1770518124141,10.73820181,87.44,87.417,0.2680296]
[1770518125137,11.43620536,87.442,87.417,0.2680296]
[1770518125319,10.73820181,87.44,87.417,0.2680296]